bitfinex/quotes_SOLUSD_20240906
["timestamp","ask_amount","ask_price","bid_price","bid_amount"]
[1725638024627,7.806,128.11,128.06,45.0]
[1725638024840,7.8066,128.1,128.06,52.8086]
[1725638025017,19.5126,128.13,128.06,45.0]
[1725638025213,7.808,128.08,128.06,45.0]
[1725638025415,7.808,128.08,128.05,45.0]
[1725638026139,7.8077,128.08,128.05,45.0]
[1725638026854,7.8077,128.08,128.05,46.56135337]
[1725638027137,7.8071,128.09,128.05,45.0]
[1725638027336,7.8082,128.07,128.05,45.0]
[1725638027538,7.8089,128.06,128.02,9.37245297]
[1725638027741,7.8089,128.06,128.02,7.811]
[1725638027923,7.8089,128.06,128.01,27.3402]
[1725638028240,19.5176,128.09,128.01,28.90182074]
[1725638028758,19.5176,128.09,128.02,7.8112]
[1725638029119,19.5176,128.09,128.02,9.37283696]
[1725638029525,39.0271,128.12,128.03,52.8106]
[1725638029722,20.0,128.11,128.04,1.56134583]
[1725638030144,20.0,128.11,128.03,72.3364]
[1725638030322,1.95188008,128.1,128.03,64.5264]
[1725638030528,1.95194182,128.12,128.01,7.8117]
[1725638030820,46.95194182,128.12,128.01,7.8117]
[1725638031127,20.0,128.11,128.01,7.8117]
[1725638031329,1.95208063,128.1,128.01,7.8117]
[1725638031534,20.0,128.11,128.01,8.93695526]
[1725638031842,20.0,128.11,128.02,7.8112]
[1725638032025,20.0,128.11,128.03,45.0]
[1725638032228,7.8094,128.05,128.03,45.0]
[1725638032542,7.8094,128.05,128.02,45.0]
[1725638033253,7.809,128.06,128.02,54.37280528]
[1725638033626,7.8089,128.06,128.02,73.90090528]
[1725638033841,7.8089,128.06,128.02,72.3392]
[1725638034222,7.8089,128.06,128.03,7.8106]
[1725638034421,7.8089,128.06,128.04,45.0]
[1725638034627,7.8084,128.07,128.03,7.8106]
[1725638034927,7.8089,128.06,128.04,45.0]
[1725638035135,19.5161,128.1,128.04,45.0]
[1725638035352,19.5191,128.08,128.01,7.8117]
[1725638035549,19.5191,128.08,128.02,45.0]
[1725638035854,7.8096,128.05,128.02,45.0]
[1725638036029,7.8101,128.04,128.02,45.0]
[1725638036235,7.8097,128.05,128.01,45.0]
[1725638036758,7.8105,128.04,128.0,19.5298]
[1725638037146,7.8105,128.04,128.0,27.3421]
[1725638037832,7.8105,128.04,128.01,45.0]
[1725638038156,35.6416,128.08,128.01,52.8117]
[1725638038157,7.8096,128.05,128.01,52.8117]
[1725638039058,7.809,128.06,128.02,7.8111]
[1725638039344,7.8083,128.07,128.03,45.0]
[1725638039752,7.8083,128.07,128.03,52.8103]
[1725638039953,7.8083,128.07,128.03,45.0]
[1725638041156,7.8076,128.08,128.04,7.8099]
[1725638041323,7.8076,128.08,128.05,45.0]
[1725638041527,37.68124667,128.11,128.06,7.8086]
[1725638041528,15.2956,128.11,128.06,7.8086]
[1725638041726,7.8067,128.1,128.07,45.0]
[1725638041947,7.807,128.09,128.07,45.0]
[1725638042158,7.807,128.09,128.05,7.809]
[1725638042347,7.8065,128.1,128.06,52.8085]
[1725638042855,17.24703417,128.11,128.01,44.03097422]
[1725638043049,7.8087,128.07,128.02,9.37217255]
[1725638043353,7.8087,128.07,128.02,7.8108]
[1725638043541,7.8087,128.07,128.03,7.8106]
[1725638044657,7.8087,128.07,128.04,45.0]
[1725638044950,19.5162,128.1,128.01,19.5287]
[1725638045153,20.0,128.09,128.0,9.37397416]
[1725638045338,20.0,128.09,128.01,7.8113]
[1725638045544,20.0,128.09,128.0,27.3428]
[1725638045741,21.9522945,128.1,128.0,19.5304]
[1725638045954,45.0,128.09,127.99,7.8128]
[1725638046133,20.0,128.08,127.99,7.8128]
[1725638047936,24.41190988,128.07,127.96,6.2514]
[1725638048151,20.0,128.06,127.96,7.81364613]
[1725638048361,20.0,128.06,127.97,7.8142]
[1725638048577,20.0,128.06,127.98,1.56234275]
[1725638048745,20.0,128.06,127.96,27.3516]
[1725638048746,7.8122,128.01,127.97,1.56226076]
[1725638049052,7.8114,128.02,127.97,7.8143]
[1725638049260,7.8118,128.01,127.96,28.91400835]
[1725638049630,20.0,128.06,127.97,7.8137]
[1725638049631,7.8113,128.02,127.97,7.8137]
[1725638049832,7.81,128.05,127.98,64.5338]
[1725638050137,7.8102,128.04,127.99,7.813]
[1725638050348,7.8102,128.04,128.0,46.56198386]
[1725638050558,7.8096,128.05,128.0,46.56198386]
[1725638050742,7.8096,128.05,128.0,54.37428386]
[1725638051162,33.16423219,128.07,128.02,7.8112]
[1725638051369,33.16423219,128.07,128.03,45.0]
[1725638051370,7.8088,128.06,128.03,45.0]
[1725638051535,7.8095,128.05,128.03,45.0]
[1725638052059,24.1887,128.07,128.03,45.0]
[1725638052242,16.3804,128.07,128.03,45.0]
[1725638052641,16.3804,128.07,128.0,21.09216772]
[1725638052837,16.3804,128.07,128.01,45.0]
[1725638053240,7.8101,128.04,128.0,45.0]
[1725638053758,7.8101,128.04,128.0,52.8124]
[1725638054742,16.3804,128.07,127.96,386.6488]
[1725638054743,19.5224,128.06,127.96,406.1849]
[1725638054942,19.5224,128.06,127.97,7.8143]
[1725638054943,7.8116,128.02,127.97,7.8143]
[1725638055469,7.8107,128.03,127.98,27.3472]
[1725638056382,7.8107,128.03,127.99,45.0]
[1725638056551,16.3804,128.07,128.0,19.5306]
[1725638056753,16.3804,128.07,128.01,46.56182211]
[1725638057153,16.3804,128.07,128.01,45.0]
[1725638057469,16.3804,128.07,128.02,9.3728719]
[1725638057773,16.3804,128.07,128.03,45.0]
[1725638058155,2.87515639,128.09,128.02,54.37274886]
[1725638058355,20.0,128.09,128.02,54.37274886]
[1725638058549,16.326,128.11,128.02,54.37274886]
[1725638058550,16.326,128.11,128.03,7.8104]
[1725638058750,16.326,128.11,128.04,54.37128116]
[1725638058977,16.326,128.11,128.05,1.56125564]
[1725638059570,16.326,128.11,128.05,9.37045564]
[1725638059778,16.326,128.11,128.06,45.0]
[1725638060076,6.4509,128.13,128.06,45.0]
[1725638060077,6.4509,128.13,128.06,64.5218]
[1725638060257,7.8055,128.12,128.07,9.36926462]
[1725638060571,7.8058,128.11,128.06,64.5218]
[1725638060777,7.8058,128.11,128.06,72.3304]
[1725638061290,7.8065,128.1,128.06,64.5218]
[1725638061472,7.8071,128.09,128.06,45.0]
[1725638061771,7.8066,128.1,128.06,45.0]
[1725638061990,7.807,128.09,128.06,45.0]
[1725638062155,7.807,128.09,128.05,52.8094]
[1725638062484,7.807,128.09,128.05,45.0]
[1725638062655,7.8078,128.08,128.05,45.0]
[1725638062859,7.8078,128.08,128.04,52.8099]
[1725638063258,7.8072,128.09,128.04,52.8099]
[1725638063469,7.8076,128.08,128.04,52.8099]
[1725638063657,7.8084,128.07,128.04,45.0]
[1725638063973,7.8078,128.08,128.04,45.0]
[1725638064376,6.4509,128.13,128.06,7.8083]
[1725638064558,7.8064,128.1,128.07,45.0]
[1725638064757,6.4509,128.13,128.07,45.0]
[1725638064979,6.4509,128.13,128.06,1.56122622]
[1725638065188,6.4509,128.13,128.06,46.56122622]
[1725638066363,7.8054,128.12,128.08,7.8075]
[1725638066561,19.5066,128.17,128.09,46.5608127]
[1725638066881,7.8049,128.13,128.09,1.5608127]
[1725638067183,19.5066,128.17,128.08,52.8072]
[1725638067184,7.8052,128.12,128.08,54.36802171]
[1725638067384,7.8052,128.12,128.08,52.8072]
[1725638067767,22.35793338,128.17,128.08,52.8072]
[1725638067768,7.8058,128.11,128.08,45.0]
[1725638068156,7.8053,128.12,128.08,45.0]
[1725638068356,7.8034,128.15,128.11,7.8053]
[1725638068571,7.8034,128.15,128.12,46.56062033]
[1725638068969,0.8413169,128.18,128.14,7.8034]
[1725638069178,0.8413169,128.18,128.15,46.56026698]
[1725638069460,8.6430169,128.18,128.15,45.0]
[1725638069683,8.6430169,128.18,128.15,1.56018767]
[1725638069860,0.8413169,128.18,128.15,21.06806749]
[1725638070068,0.8413169,128.18,128.17,7.8021]
[1725638070274,0.8413169,128.18,128.17,54.36164396]
[1725638070601,0.8413169,128.18,128.17,72.8021]
[1725638070886,15.0,128.25,128.22,7.7989]
[1725638071081,15.0,128.25,128.23,45.0]
[1725638073074,15.0,128.25,128.18,45.59025605]
[1725638073276,15.0,128.25,128.19,52.8004]
[1725638073587,15.0,128.25,128.22,19.4972]
[1725638073764,15.0,128.25,128.23,46.55934277]
[1725638074187,15.0,128.25,128.23,45.0]
[1725638074394,15.0,128.25,128.23,52.7984]
[1725638074570,15.0,128.25,128.23,54.35758192]
[1725638074888,15.0,128.25,128.23,52.7984]
[1725638075979,15.0,128.25,128.24,7.7978]
[1725638076188,15.0,128.25,128.24,98.38792264]
[1725638076482,0.8413169,128.31,128.28,7.7953]
[1725638076694,0.8413169,128.31,128.29,45.0]
[1725638077085,0.8413169,128.31,128.27,27.2855]
[1725638077086,8.6350169,128.31,128.28,45.0]
[1725638077266,7.7942,128.3,128.25,7.7968]
[1725638077589,8.6353169,128.31,128.26,54.35519299]
[1725638077791,0.8413169,128.31,128.27,1.55853402]
[1725638078087,0.8413169,128.31,128.29,7.7947]
[1725638078289,0.8413169,128.31,128.3,45.0]
[1725638078787,0.8413169,128.31,128.29,52.7946]
[1725638078967,0.8413169,128.31,128.29,45.0]
[1725638080587,0.8413169,128.31,128.3,1.55841459]
[1725638082787,0.8413169,128.31,128.3,9.35261459]
[1725638082974,0.8413169,128.31,128.3,54.35261459]
[1725638083388,0.8413169,128.31,128.3,76.22881459]
[1725638083697,0.8413169,128.31,128.3,74.6704]
[1725638084081,0.8413169,128.31,128.3,76.22848175]
[1725638085100,0.8413169,128.31,128.3,115.19952438]
[1725638085307,0.8413169,128.31,128.3,113.6415]
[1725638085609,7.7893,128.39,128.34,7.7915]
[1725638085784,7.7893,128.38,128.35,45.0]
[1725638085983,7.7889,128.39,128.35,52.7911]
[1725638086183,7.7889,128.39,128.35,54.34866896]
[1725638086498,7.7883,128.4,128.35,54.34866896]
[1725638086804,7.7883,128.4,128.36,1.55747241]
[1725638087177,7.7888,128.39,128.35,46.55747406]
[1725638087373,7.79,128.37,128.34,45.0]
[1725638087672,7.79,128.37,128.31,44.03097422]
[1725638087673,7.7901,128.37,128.31,44.03097422]
[1725638087872,19.4716,128.4,128.31,51.82447422]
[1725638088290,7.791,128.36,128.31,51.82447422]
[1725638088497,7.791,128.36,128.31,7.7935]
[1725638088817,19.4716,128.4,128.31,7.7935]
[1725638088818,7.7915,128.35,128.31,1.55809652]
[1725638089011,7.7907,128.36,128.31,9.35169652]
[1725638089997,7.7907,128.36,128.31,7.7936]
[1725638091101,16.3954,128.38,128.32,7.793]
[1725638091298,16.3954,128.38,128.32,9.35103464]
[1725638091601,24.95610908,128.42,128.33,21.03823811]
[1725638091782,22.0307,128.42,128.36,7.7905]
[1725638091977,22.0307,128.42,128.36,9.34801289]
[1725638091978,7.7876,128.41,128.36,9.34801289]
[1725638092181,7.7876,128.41,128.36,7.7905]
[1725638092475,22.0307,128.42,128.37,45.0]
[1725638092685,22.0307,128.42,128.36,1.55754026]
[1725638092686,8.6272169,128.44,128.39,7.7881]
[1725638092898,8.6272169,128.44,128.4,46.55719528]
[1725638093212,8.6272169,128.44,128.4,54.34519528]
[1725638094189,8.6272169,128.44,128.4,52.788]
[1725638094399,0.8413169,128.44,128.41,7.7874]
[1725638094597,0.8413169,128.44,128.4,46.55708144]
[1725638094598,0.8413169,128.44,128.42,45.0]
[1725638094806,0.8413169,128.44,128.42,1.55694929]
[1725638095006,0.8413169,128.44,128.42,46.55694929]
[1725638095190,0.8413169,128.44,128.42,45.0]
[1725638095510,8.6272169,128.44,128.39,7.7887]
[1725638095804,8.6272169,128.44,128.4,45.0]
[1725638096018,0.8413169,128.44,128.41,7.7874]
[1725638096347,0.8413169,128.44,128.42,46.55694143]
[1725638096683,0.8413169,128.44,128.43,1.55685853]
[1725638097082,0.8413169,128.44,128.42,45.0]
[1725638097298,0.8413169,128.44,128.41,45.0]
[1725638097904,8.6270169,128.44,128.41,45.0]
[1725638100311,0.8413169,128.44,128.41,64.4681]
[1725638100508,0.8413169,128.44,128.42,7.7868]
[1725638100818,0.8413169,128.44,128.36,6.3092]
[1725638100998,7.787,128.42,128.37,45.0]
[1725638101202,7.787,128.42,128.37,1.5573132]
[1725638101389,7.787,128.42,128.36,6.3092]
[1725638102324,7.787,128.42,128.37,27.2643]
[1725638102497,2.78798013,128.44,128.36,7.7904]
[1725638102699,2.78798013,128.44,128.34,35.9392]
[1725638102700,0.8413169,128.44,128.39,19.4707]
[1725638103010,0.8413169,128.44,128.41,7.7871]
[1725638103196,0.8413169,128.44,128.42,7.7869]
[1725638103500,0.8413169,128.44,128.43,9.34318612]
[1725638104013,0.8413169,128.44,128.43,54.34318612]
[1725638104593,23.0775,128.52,128.47,7.7838]
[1725638104934,23.0775,128.52,128.46,27.2456]
[1725638105393,23.0775,128.52,128.43,64.4655]
[1725638105394,1.94563965,128.51,128.43,64.4655]
[1725638105595,23.0775,128.52,128.44,45.0]
[1725638105807,23.0775,128.52,128.45,7.7848]
[1725638106002,25.02326822,128.52,128.45,7.7848]
[1725638106194,23.0775,128.52,128.45,7.7848]
[1725638106695,7.7826,128.5,128.45,7.7848]
[1725638106902,7.7827,128.49,128.44,45.0]
[1725638108025,23.0775,128.52,128.45,1.5566173]
[1725638108404,7.7825,128.5,128.45,7.785]
[1725638108602,7.7825,128.5,128.46,45.0]
[1725638109002,23.0775,128.52,128.46,89.03097422]
[1725638109303,23.0775,128.52,128.46,96.81527422]
[1725638109493,23.0775,128.52,128.46,45.0]
[1725638109999,7.7831,128.49,128.45,19.4615]
[1725638110395,7.7833,128.48,128.44,7.7852]
[1725638110708,7.7872,128.42,128.37,44.03097422]
[1725638110909,15.6009,128.46,128.37,44.03097422]
[1725638111113,15.6009,128.46,128.4,7.7881]
[1725638111315,7.7857,128.45,128.4,7.7881]
[1725638111517,15.6009,128.46,128.41,7.7875]
[1725638111718,15.6009,128.46,128.42,7.7868]
[1725638111899,15.6009,128.46,128.41,7.7874]
[1725638111900,23.3854,128.46,128.41,7.7874]
[1725638112099,17.10932093,128.49,128.42,19.4666]
[1725638112313,7.7839,128.47,128.43,7.7861]
[1725638112516,7.7839,128.47,128.42,27.2534]
[1725638112820,7.7846,128.46,128.42,27.2534]
[1725638113020,7.784,128.47,128.43,7.7862]
[1725638113194,7.7834,128.48,128.44,19.4637]
[1725638113393,22.9457,128.49,128.44,27.2494]
[1725638113803,15.163,128.49,128.43,7.7862]
[1725638114404,22.9458,128.49,128.43,19.4651]
[1725638114601,15.163,128.49,128.45,7.7849]
[1725638114812,22.9458,128.49,128.45,7.7849]
[1725638115225,8.40248541,128.52,128.44,45.0]
[1725638115522,7.7813,128.52,128.47,7.7838]
[1725638115719,7.7816,128.51,128.47,7.7838]
[1725638116018,7.7816,128.51,128.46,19.4606]
[1725638116019,18.02782877,128.53,128.48,27.2407]
[1725638116195,18.02782877,128.53,128.47,7.7837]
[1725638116399,7.7819,128.51,128.46,7.7843]
[1725638117596,7.781,128.52,128.47,7.7834]
[1725638117796,25.80822877,128.53,128.47,63.49017422]
[1725638118300,22.9016,128.53,128.48,7.7828]
[1725638118842,7.781,128.52,128.47,71.27387422]
[1725638119120,15.1212,128.53,128.47,71.27387422]
[1725638119436,7.7815,128.51,128.47,19.4592]
[1725638120431,7.7821,128.5,128.45,51.81597422]
[1725638120607,7.7821,128.5,128.44,19.4635]
[1725638120608,1.94572421,128.52,128.44,19.4635]
[1725638120811,7.7826,128.5,128.45,7.7849]
[1725638121130,7.7827,128.49,128.45,7.7849]
[1725638121304,7.7822,128.5,128.46,7.7844]
[1725638121503,15.1212,128.53,128.45,7.7849]
[1725638121504,7.7827,128.49,128.45,7.7849]
[1725638121821,7.7816,128.51,128.46,19.4609]
[1725638122031,1.94571687,128.5,128.46,27.2448]
[1725638122218,7.7816,128.51,128.46,27.2448]
[1725638122431,7.7816,128.51,128.46,19.4609]
[1725638122728,7.781,128.52,128.46,19.4609]
[1725638123309,22.9015,128.53,128.46,27.2452]
[1725638123516,7.781,128.52,128.46,19.4609]
[1725638124121,7.781,128.52,128.46,21.01741394]
[1725638124625,22.9016,128.53,128.46,27.2453]
[1725638124830,22.9016,128.53,128.47,45.0]
[1725638124831,22.9014,128.53,128.47,45.0]
[1725638125127,22.9014,128.53,128.43,63.49567422]
[1725638125128,7.7829,128.49,128.43,63.49567422]
[1725638125328,15.1212,128.53,128.43,27.2505]
[1725638125329,1.94586009,128.52,128.43,27.2505]
[1725638125517,7.7824,128.5,128.43,27.2505]
[1725638125827,15.1212,128.53,128.45,7.7845]
[1725638126024,15.1212,128.53,128.45,19.462]
[1725638126353,7.7816,128.51,128.45,19.462]
[1725638126531,7.7816,128.51,128.39,13.8279]
[1725638126532,7.7849,128.46,128.39,13.8279]
[1725638126731,66.40170068,128.5,128.39,33.2986]
[1725638127036,7.7846,128.46,128.39,33.2986]
[1725638127207,7.7852,128.45,128.39,33.2986]
[1725638127829,19.4554,128.5,128.41,19.4681]
[1725638128134,7.7838,128.48,128.41,71.28617422]
[1725638128339,7.7838,128.48,128.41,63.49907422]
[1725638128554,7.7828,128.49,128.43,44.03097422]
[1725638128840,7.7829,128.49,128.44,45.0]
[1725638131357,7.7835,128.48,128.41,51.81827422]
[1725638131916,7.7839,128.47,128.41,51.81827422]
[1725638132336,7.7839,128.47,128.39,25.5103]
[1725638132337,7.7845,128.46,128.39,69.54127422]
[1725638132716,7.7845,128.46,128.4,7.788]
[1725638133840,7.7839,128.47,128.4,7.7876]
[1725638134045,7.7834,128.48,128.41,108.49947422]
[1725638134547,7.7827,128.49,128.43,44.03097422]
[1725638134716,7.7827,128.49,128.44,45.0]
[1725638135835,17.23315467,128.51,128.44,45.0]
[1725638136341,6.5005,128.51,128.45,71.27847422]
[1725638136640,15.9273,128.56,128.47,44.03097422]
[1725638136820,15.9273,128.56,128.48,1.55636345]
[1725638137027,23.706,128.56,128.49,1.55610396]
[1725638137226,7.7791,128.55,128.48,52.7827]
[1725638137838,9.72429501,128.55,128.48,52.7827]
[1725638138043,20.82386441,128.56,128.47,27.2427]
[1725638138243,18.87854279,128.56,128.48,45.0]
[1725638138545,26.65734279,128.56,128.49,7.7822]
[1725638138846,26.65734279,128.56,128.5,45.0]
[1725638139420,10.73004279,128.56,128.5,45.0]
[1725638139948,0.8413169,128.57,128.5,75.0]
[1725638139949,7.7791,128.55,128.5,75.0]
[1725638140448,0.8413169,128.57,128.5,82.7817]
[1725638140666,0.8413169,128.57,128.51,1.55603089]
[1725638140945,8.6193169,128.57,128.51,63.48397422]
[1725638141151,0.8413169,128.57,128.51,63.48397422]
[1725638141330,0.8413169,128.57,128.51,93.48397422]
[1725638141530,0.8413169,128.57,128.51,74.03097422]
[1725638141744,10.56396362,128.57,128.51,30.0]
[1725638142262,7.779,128.56,128.51,30.0]
[1725638142551,7.7806,128.53,128.47,44.03097422]
[1725638142732,22.23100328,128.57,128.47,44.03097422]
[1725638142938,45.0,128.56,128.47,44.03097422]
[1725638143153,45.0,128.56,128.47,51.81467422]
[1725638143543,7.78,128.54,128.47,51.81467422]
[1725638143843,7.78,128.54,128.48,45.0]
[1725638144235,7.78,128.54,128.47,44.03097422]
[1725638144435,7.78,128.54,128.47,51.81477422]
[1725638144645,7.78,128.54,128.48,45.0]
[1725638144849,7.78,128.54,128.48,50.47847249]
[1725638145647,7.78,128.54,128.48,5.47847249]
[1725638145855,7.78,128.54,128.47,51.81477422]
[1725638146152,7.78,128.54,128.48,45.0]
[1725638146339,7.78,128.54,128.48,50.47847249]
[1725638146539,7.78,128.54,128.48,58.26177249]
[1725638146935,20.2860169,128.57,128.48,45.0]
[1725638147339,7.7791,128.55,128.48,59.81674151]
[1725638147556,7.7791,128.55,128.48,54.33893505]
[1725638147740,7.7791,128.55,128.48,59.81647206]
[1725638148056,7.7797,128.54,128.48,59.81647206]
[1725638148442,7.7797,128.54,128.48,52.03357206]
[1725638150037,7.7793,128.55,128.48,59.81677206]
[1725638150626,7.7797,128.54,128.48,59.81677206]
[1725638151842,7.7793,128.55,128.48,59.81677206]
[1725638152549,7.7786,128.56,128.49,9.33859281]
[1725638152756,7.7786,128.56,128.5,45.0]
[1725638153940,1.94485458,128.55,128.47,44.03097422]
[1725638154140,7.7793,128.55,128.48,7.7832]
[1725638154334,20.2862169,128.57,128.48,7.7832]
[1725638154651,7.7803,128.53,128.47,49.50787758]
[1725638154832,7.7798,128.54,128.47,51.81437422]
[1725638155034,7.7794,128.55,128.47,51.81437422]
[1725638155254,7.7794,128.55,128.47,57.29127758]
[1725638155765,7.7794,128.55,128.48,52.7832]
[1725638156056,0.8413169,128.57,128.49,7.7825]
[1725638156235,0.8413169,128.57,128.51,44.03097422]
[1725638156435,0.8413169,128.57,128.53,44.03097422]
[1725638157163,0.8413169,128.57,128.55,44.03097422]
[1725638158954,0.8413169,128.57,128.55,63.47837422]
[1725638159642,0.8413169,128.57,128.55,44.03097422]
[1725638159960,0.8413169,128.57,128.55,51.80997422]
[1725638160160,0.8413169,128.57,128.55,44.03097422]
[1725638160350,0.8413169,128.57,128.56,7.7784]
[1725638161066,0.8413169,128.57,128.56,52.7784]
[1725638163663,0.8413169,128.57,128.55,7.779]
[1725638163971,0.8413169,128.57,128.49,66.78117422]
[1725638164180,0.8413169,128.57,128.49,42.2065]
[1725638164464,7.7786,128.56,128.49,49.9891]
[1725638164674,0.8413169,128.57,128.49,22.7502]
[1725638164845,7.7801,128.54,128.49,22.7502]
[1725638165046,47.78650534,128.57,128.49,22.7502]
[1725638165240,7.7785,128.56,128.49,22.7502]
[1725638165451,7.7785,128.56,128.49,6.0927]
[1725638165669,7.7785,128.56,128.49,13.8753]
[1725638166136,8.6192169,128.57,128.5,1.55619755]
[1725638166341,8.6192169,128.57,128.5,9.33809755]
[1725638166562,0.8413169,128.57,128.51,1.55592726]
[1725638166775,0.8413169,128.57,128.5,7.7819]
[1725638167349,0.8413169,128.57,128.51,7.7814]
[1725638167759,7.7802,128.54,128.49,6.0927]
[1725638167970,2.7860516,128.57,128.49,6.0927]
[1725638168153,7.7789,128.56,128.49,6.0927]
[1725638168947,8.6192169,128.57,128.49,13.8749]
[1725638169380,0.8413169,128.57,128.5,44.03097422]
[1725638169579,0.8413169,128.57,128.51,52.7809]
[1725638170067,0.8413169,128.57,128.51,7.7809]
[1725638170270,0.8413169,128.57,128.53,7.7801]
[1725638170453,0.8413169,128.57,128.54,45.0]
[1725638170888,0.8413169,128.57,128.55,1.55540384]
[1725638171406,0.8413169,128.57,128.55,7.7786]
[1725638171589,0.8413169,128.57,128.56,45.0]
[1725638171752,0.8413169,128.57,128.55,7.7786]
[1725638172865,0.8413169,128.57,128.54,44.03097422]
[1725638173169,0.8413169,128.57,128.54,51.81047422]
[1725638173374,0.8413169,128.57,128.54,44.03097422]
[1725638173578,0.8413169,128.57,128.52,15.9495]
[1725638173978,0.8413169,128.57,128.52,23.7302]
[1725638174454,0.8413169,128.57,128.52,23.7303]
[1725638174968,0.8413169,128.57,128.52,7.7808]
[1725638175171,0.8413169,128.57,128.51,7.7812]
[1725638175675,8.6195169,128.57,128.5,27.2359]
[1725638176185,0.8413169,128.57,128.5,19.4541]
[1725638176556,0.8413169,128.57,128.49,29.3303]
[1725638177186,7.7819,128.51,128.45,6.2134]
[1725638177356,7.781,128.52,128.45,13.9984]
[1725638178079,7.7804,128.53,128.46,7.7845]
[1725638178261,1.94566291,128.52,128.46,7.7845]
[1725638179577,7.7797,128.54,128.47,7.7835]
[1725638179782,7.0575169,128.57,128.48,45.58734639]
[1725638179960,7.0575169,128.57,128.53,7.7798]
[1725638179961,0.8413169,128.57,128.53,7.7798]
[1725638180160,0.8413169,128.57,128.56,7.7784]
[1725638180474,0.8413169,128.57,128.55,7.7789]
[1725638180677,0.8413169,128.57,128.56,7.7784]
[1725638180861,0.8413169,128.57,128.54,63.47987422]
[1725638181475,0.8413169,128.57,128.53,7.78]
[1725638181662,0.8413169,128.57,128.54,7.7796]
[1725638181855,0.8413169,128.57,128.55,7.7789]
[1725638182970,0.8413169,128.57,128.54,44.03097422]
[1725638183193,0.8413169,128.57,128.54,51.81057422]
[1725638185183,0.8413169,128.57,128.55,7.7789]
[1725638185484,0.8413169,128.57,128.55,27.2258]
[1725638186060,0.8413169,128.57,128.55,19.4469]
[1725638187281,0.8413169,128.57,128.53,7.7801]
[1725638187488,0.8413169,128.57,128.52,36.14233314]
[1725638187672,0.8413169,128.57,128.52,27.2319]
[1725638187882,0.8413169,128.57,128.52,19.4514]
[1725638189284,0.8413169,128.57,128.51,7.7814]
[1725638189481,0.8413169,128.57,128.49,8.91117539]
[1725638189482,1.94484364,128.56,128.49,8.91117539]
[1725638189666,1.94484364,128.56,128.48,27.2398]
[1725638189667,23.80374364,128.56,128.48,27.2398]
[1725638189868,52.7792,128.55,128.48,27.2398]
[1725638190890,7.7803,128.53,128.46,50.26237422]
[1725638191075,52.7795,128.55,128.47,52.7838]
[1725638191274,52.7795,128.55,128.48,7.783]
[1725638191583,45.0,128.55,128.47,73.37300866]
[1725638191790,52.7796,128.55,128.47,28.37300866]
[1725638192086,52.7796,128.55,128.47,27.243]
[1725638192788,1.35522492,128.54,128.47,27.243]
[1725638192962,1.94544017,128.53,128.45,16.69840866]
[1725638193165,1.94544017,128.53,128.45,7.7846]
[1725638193859,11.08113992,128.54,128.46,7.7844]
[1725638194671,7.7803,128.53,128.46,7.7844]
[1725638194985,1.94571218,128.52,128.46,7.7844]
[1725638195183,9.72671218,128.52,128.45,7.7851]
[1725638195391,1.94571224,128.51,128.44,63.49497422]
[1725638195764,3.30108906,128.54,128.44,63.49497422]
[1725638195963,7.7807,128.53,128.46,7.7841]
[1725638196186,9.72676399,128.52,128.45,7.785]
[1725638196492,1.94586399,128.51,128.45,7.785]
[1725638197994,7.7809,128.52,128.46,7.7845]
[1725638198666,1.35522492,128.54,128.46,63.49177422]
[1725638198975,11.08092503,128.54,128.46,63.49177422]
[1725638199283,7.7804,128.53,128.47,7.7836]
[1725638199669,7.7804,128.53,128.46,71.27617422]
[1725638200283,7.7804,128.53,128.47,7.7837]
[1725638200471,11.99605876,128.54,128.47,7.7837]